{"text_format":"1","workbook":"xlsx","n_sheets":2,"sheets":["결과","문제"],"not_rendered":{"charts":0,"images":0,"macros":1,"external_links":0,"defined_names":0,"comments":0,"pivot_tables":0},"unopened":[],"bounds":{"document_bytes":16777216,"sheet_cells":100000,"rows_first":2000,"rows_last":500,"rows_between":2000,"halvings":0,"cell_chars":16384,"cell_head_chars":4096},"cells_cut":0,"cells_raw":0,"read":"whole","date_system":"1900"}

{"sheet":"결과","index":0,"n_rows":8,"n_cols":4,"rows_kept":8,"cut":false,"hidden":false,"merged":[[0,3,0,4]]}
["성명","점수",null,"Haja_Macro"]
["촙촙",436]
["절권",433]
["하자",311]
["잔머리",278]
["준빠",268]
["엑사남",60]
["pia",211]

{"sheet":"문제","index":1,"n_rows":28,"n_cols":12,"rows_kept":28,"cut":false,"hidden":false,"merged":[]}
["성명","점수",null,null,null,null,null,"성명","점수"]
["촙촙",83,null,null,null,null,null,{"$f":"INDEX($L$2:$L$11,RANDBETWEEN(1,COUNTA($L$2:$L$11)))","v":"절권"},{"$f":"RANDBETWEEN(55,100)","v":62},null,null,"엑사남"]
["촙촙",86,null,null,null,null,null,"잔머리",{"$f":"RANDBETWEEN(55,100)","v":96},null,null,"준빠"]
["촙촙",86,null,null,null,null,null,"촙촙",60,null,null,"뽀리너"]
["절권",69,null,null,null,null,null,"절권",83,null,null,"하자"]
["절권",74,null,null,null,null,null,"준빠",99,null,null,"절권"]
["촙촙",92,null,null,null,null,null,"촙촙",70,null,null,"잔머리"]
["절권",68,null,null,null,null,null,"변화무쌍",97,null,null,"변화무쌍"]
["하자",97,null,null,null,null,null,"pia",93,null,null,"촙촙"]
["잔머리",77,null,null,null,null,null,"엑사남",98,null,null,"pia"]
["준빠",71,null,null,null,null,null,"절권",90,null,null,"다잡"]
["촙촙",89,null,null,null,null,null,"엑사남",61,null,null,"범"]
["절권",89,null,null,null,null,null,"다잡",63]
["잔머리",55,null,null,null,null,null,"pia",73]
["잔머리",89,null,null,null,null,null,"pia",64]
["절권",55,null,null,null,null,null,"뽀리너",66]
["하자",70,null,null,null,null,null,"엑사남",80]
["절권",78,null,null,null,null,null,"하자",85]
["잔머리",57,null,null,null,null,null,"촙촙",65]
["엑사남",60,null,null,null,null,null,"변화무쌍",77]
["pia",58,null,null,null,null,null,"엑사남",94]
["하자",59,null,null,null,null,null,"변화무쌍",75]
["준빠",82,null,null,null,null,null,"잔머리",99]
["pia",65,null,null,null,null,null,"준빠",83]
["준빠",59,null,null,null,null,null,"다잡",62]
["준빠",56,null,null,null,null,null,"변화무쌍",100]
["pia",88,null,null,null,null,null,"하자",58]
["하자",85,null,null,null,null,null,"절권",84]